bitfinex/quotes_ETHUSD_20251125
["timestamp","ask_amount","ask_price","bid_price","bid_amount"]
[1764112152243,0.1805,2974.3,2972.7,0.405504]
[1764112152431,0.1805,2974.3,2973.3,0.96974603]
[1764112152637,0.4949,2974.2,2973.3,0.87674603]
[1764112152809,0.4949,2974.2,2973.4,0.217]
[1764112153013,0.1805,2974.3,2973.4,1.57924603]
[1764112153341,0.6754,2974.3,2973.5,0.217]
[1764112153541,0.1805,2974.3,2973.5,0.217]
[1764112153757,0.1805,2974.3,2973.2,0.1361]
[1764112153758,0.4629,2973.6,2973.2,0.1361]
[1764112154110,0.1805,2974.3,2973.5,0.4567]
[1764112154348,0.4116,2975.0,2973.7,0.4567]
[1764112154349,0.48985629,2974.7,2973.7,0.4567]
[1764112155353,0.1946,2976.2,2974.7,0.405504]
[1764112155644,2.32842528,2977.1,2974.7,0.405504]
[1764112155645,0.1946,2976.7,2975.4,1.13109811]
[1764112155808,0.216,2977.6,2975.4,1.13109811]
[1764112155809,0.216,2977.6,2975.8,0.093]
[1764112156013,3.3587021,2977.4,2976.1,0.72559411]
[1764112156226,3.35852856,2977.5,2976.1,0.72559411]
[1764112156427,0.6895,2977.0,2976.1,0.72559411]
[1764112156945,0.4949,2976.9,2976.1,0.72559411]
[1764112157365,0.4949,2977.4,2976.2,0.4855]
[1764112157519,0.4949,2977.4,2976.4,0.093]
[1764112157719,0.4949,2977.4,2976.4,0.5785]
[1764112158118,0.4949,2977.4,2976.6,0.72559411]
[1764112158634,0.216,2977.6,2976.6,1.30409411]
[1764112159034,0.216,2977.6,2976.7,0.093]
[1764112159643,0.216,2977.6,2976.7,0.5785]
[1764112160153,0.216,2977.6,2976.7,0.7945]
[1764112160354,0.216,2977.6,2976.8,10.07793603]
[1764112160512,0.4949,2977.7,2976.9,0.72559411]
[1764112160717,0.4949,2977.7,2976.7,0.216]
[1764112162111,3.55258178,2978.0,2976.7,0.216]
[1764112162112,0.1946,2978.0,2976.7,0.7148]
[1764112162315,0.1946,2978.0,2977.0,0.81859411]
[1764112162516,0.90131397,2980.7,2977.0,0.81859411]
[1764112162517,0.4973,2978.8,2977.9,0.4765]
[1764112163512,0.4973,2978.8,2977.8,0.216]
[1764112163513,0.697,2979.7,2978.7,0.6602]
[1764112163717,0.4973,2979.6,2978.7,0.6602]
[1764112164348,0.1997,2979.7,2978.7,0.6602]
[1764112164349,0.1997,2979.7,2978.9,0.72559411]
[1764112164553,0.4973,2979.9,2978.9,1.22439411]
[1764112164849,0.4973,2979.9,2978.9,0.4988]
[1764112165226,0.4973,2979.9,2978.9,0.7148]
[1764112165432,0.4973,2979.9,2978.9,0.4988]
[1764112165631,0.4973,2980.1,2978.9,1.22439411]
[1764112165864,0.4973,2979.9,2979.0,0.216]
[1764112166068,0.216,2980.3,2979.0,0.8078]
[1764112166069,0.7133,2980.3,2979.0,0.8078]
[1764112166221,0.7133,2980.3,2979.1,0.4988]
[1764112166574,0.4531,2979.1,2978.1,3.85660291]
[1764112166725,0.1512,2979.0,2978.2,7.44105981]
[1764112166925,0.697,2978.9,2978.2,3.35773285]
[1764112167252,0.697,2978.9,2977.7,0.4988]
[1764112167463,0.4973,2978.8,2977.8,3.35818389]
[1764112167948,0.4973,2978.8,2977.0,0.4988]
[1764112168125,0.4973,2978.8,2977.2,6.71771774]
[1764112168320,0.4973,2978.8,2977.2,10.07657841]
[1764112168321,3.85446781,2978.8,2977.2,10.07657841]
[1764112168641,3.85446781,2978.8,2977.3,5.50423669]
[1764112168642,7.21143411,2978.8,2977.3,5.50423669]
[1764112168841,7.21143411,2978.8,2977.2,6.93371774]
[1764112168842,0.4973,2978.7,2977.2,6.93371774]
[1764112169022,0.4973,2978.7,2977.3,0.72559411]
[1764112169454,0.4973,2978.7,2977.2,7.30951774]
[1764112169655,0.4973,2978.7,2977.2,6.93371774]
[1764112169841,0.4973,2978.7,2977.3,0.72559411]
[1764112170469,3.85448889,2978.7,2977.5,0.72559411]
[1764112170668,0.4973,2978.7,2977.5,0.81859411]
[1764112170868,0.4973,2978.6,2977.5,0.81859411]
[1764112171183,0.4973,2978.6,2977.5,0.72559411]
[1764112172650,0.4973,2978.6,2977.7,0.72559411]
[1764112172845,3.85459641,2978.6,2977.7,0.72559411]
[1764112173282,0.4973,2978.5,2977.7,0.72559411]
[1764112173486,0.4973,2978.5,2977.6,6.7168189]
[1764112173863,0.4973,2978.5,2977.6,3.35840945]
[1764112174063,0.4973,2978.5,2977.6,6.7168189]
[1764112174393,0.4973,2978.5,2977.4,3.35862431]
[1764112174394,0.6043,2977.7,2977.4,3.35862431]
[1764112174691,0.6043,2977.7,2977.2,6.71772134]
[1764112174692,0.1992,2977.6,2977.2,6.71772134]
[1764112174864,0.1992,2977.6,2977.3,0.72559411]
[1764112175070,0.1992,2977.6,2977.2,6.71772134]
[1764112175071,0.1992,2977.6,2977.2,3.35886067]
[1764112175274,0.1992,2977.6,2976.9,1.22439411]
[1764112175275,0.1992,2977.6,2976.6,3.35953772]
[1764112175276,0.4506,2977.3,2976.6,3.35953772]
[1764112175587,0.4973,2977.5,2976.6,3.35953772]
[1764112175588,0.2017,2977.2,2976.6,3.35953772]
[1764112175756,0.2017,2977.2,2976.6,6.71907544]
[1764112176852,0.2017,2977.2,2976.6,3.35953772]
[1764112177065,0.2017,2977.2,2976.6,6.71907544]
[1764112177290,0.4973,2977.1,2976.2,0.1589]
[1764112177494,0.6478,2976.7,2976.1,0.216]
[1764112177787,0.6478,2976.7,2975.8,7.21968176]
[1764112177788,0.6478,2976.7,2975.8,3.36044088]
[1764112177789,0.2042,2976.2,2975.8,3.36044088]
[1764112177989,0.2042,2976.2,2975.3,3.57691639]
[1764112177990,0.6454,2975.9,2975.3,3.36100561]
[1764112178292,0.1997,2975.9,2975.4,0.72559411]
[1764112178508,0.4973,2975.9,2975.4,0.72559411]
[1764112178806,0.216,2976.2,2975.3,6.72201122]
[1764112178807,0.4531,2975.5,2975.3,3.36100561]
[1764112179102,0.4973,2975.8,2975.3,6.72201122]
[1764112179458,0.216,2976.2,2975.3,6.72201122]
[1764112179663,0.4973,2976.1,2975.3,6.72201122]
[1764112180082,0.4531,2975.4,2975.3,3.36100561]
[1764112180781,0.4531,2975.4,2974.6,0.1466]
[1764112180782,0.4973,2975.7,2975.0,0.72559411]
[1764112181383,0.002,2975.9,2975.0,0.72559411]
[1764112181595,0.002,2975.9,2975.1,0.4988]
[1764112181765,0.002,2975.9,2975.1,0.7148]
[1764112182280,0.002,2975.9,2975.2,0.4988]
[1764112182482,0.1997,2976.3,2975.2,0.4988]
[1764112182483,0.1997,2976.7,2975.2,0.4988]
[1764112182484,0.1997,2978.9,2976.1,8.48402363]
[1764112182702,0.80818321,2978.8,2977.6,0.81859411]
[1764112182903,0.1997,2978.9,2977.7,0.216]
[1764112183066,0.4973,2978.8,2977.8,0.1569]
[1764112183395,0.4973,2978.8,2977.9,0.216]
[1764112183798,0.1997,2978.9,2977.9,0.8078]
[1764112183966,0.1997,2978.9,2978.0,0.4988]
[1764112184182,0.4973,2979.2,2978.0,0.4988]
[1764112184368,0.4973,2979.2,2978.1,0.158]
[1764112184690,0.4973,2979.2,2978.3,0.72559411]
[1764112184887,0.4973,2979.2,2978.4,0.216]
[1764112185895,0.4973,2979.4,2978.4,0.216]
[1764112186270,0.4973,2979.4,2978.3,0.72559411]
[1764112186595,0.4973,2979.4,2978.5,0.72559411]
[1764112187761,0.4973,2979.4,2978.3,0.72559411]
[1764112187762,0.1997,2978.6,2978.3,0.72559411]
[1764112187966,4.49584258,2980.0,2978.4,0.216]
[1764112187967,0.1997,2978.8,2978.4,0.216]
[1764112188397,0.697,2978.8,2978.4,0.216]
[1764112188932,0.697,2978.8,2978.5,3.35739466]
[1764112189270,0.1997,2979.1,2978.5,6.71478932]
[1764112189470,0.1997,2979.1,2978.6,0.216]
[1764112189879,0.697,2979.1,2978.6,0.216]
[1764112190430,0.1997,2979.1,2978.6,0.216]
[1764112190970,0.1997,2979.1,2978.7,6.71433846]
[1764112191320,0.4973,2979.4,2978.8,0.216]
[1764112191530,0.4973,2979.4,2978.7,6.71433846]
[1764112191711,0.4973,2979.4,2978.9,0.216]
[1764112192126,0.4797,2979.0,2978.9,0.216]
[1764112192629,0.4973,2979.4,2978.9,0.216]
[1764112193094,0.4973,2979.4,2979.0,6.7136623]
[1764112193817,0.4973,2979.4,2979.0,3.35683115]
[1764112193818,0.4797,2979.1,2979.0,3.35683115]
[1764112194317,0.4833,2979.8,2979.0,6.7136623]
[1764112194820,0.4833,2979.8,2979.1,0.216]
[1764112195124,0.4833,2979.8,2979.0,10.07049345]
[1764112195125,0.4833,2979.8,2979.2,0.216]
[1764112197105,0.4833,2979.8,2978.8,13.4281886]
[1764112197106,0.4833,2979.8,2979.3,0.216]
[1764112197585,0.4833,2979.8,2978.8,13.8977886]
[1764112197586,0.4833,2979.8,2979.4,0.216]
[1764112197790,0.4797,2979.5,2979.4,0.216]
[1764112198295,0.4797,2979.5,2978.8,10.07113207]
[1764112198497,0.963,2979.5,2978.8,10.07113207]
[1764112198698,0.963,2979.5,2978.9,0.216]
[1764112199089,0.1997,2980.1,2979.0,10.07049345]
[1764112199295,0.4833,2979.9,2979.0,10.07049345]
[1764112199494,0.4833,2979.9,2979.1,0.72559411]
[1764112199718,0.1997,2980.1,2979.1,0.72559411]
[1764112199933,0.4833,2979.9,2979.2,0.216]
[1764112200511,0.002,2979.8,2979.2,0.216]
[1764112200716,0.002,2979.8,2979.3,0.216]
[1764112201150,0.002,2979.8,2979.4,6.71276094]
[1764112201315,0.002,2979.8,2979.4,10.06914141]
[1764112202028,0.002,2979.8,2979.7,1.22229411]
[1764112202224,0.002,2979.8,2979.7,1.43829411]
[1764112203461,0.002,2979.8,2979.7,4.79433666]
[1764112203666,0.002,2979.8,2979.7,4.57833666]
[1764112203957,0.002,2979.8,2979.6,3.35614714]
[1764112203958,0.4661,2979.8,2979.6,0.216]
[1764112204309,0.1857,2979.7,2979.6,0.216]
[1764112204419,0.1857,2979.7,2979.4,0.216]
[1764112204620,0.002,2979.8,2979.4,0.216]
[1764112204819,0.4902,2979.8,2979.4,0.216]
[1764112205247,0.4902,2979.8,2979.5,3.35626783]
[1764112206016,0.002,2979.8,2979.5,6.71253566]
[1764112206223,0.002,2979.8,2979.7,0.4967]
[1764112206448,0.002,2979.8,2979.7,0.7127]
[1764112206821,0.002,2979.8,2979.7,1.21]
[1764112207126,0.002,2979.8,2979.7,0.216]
[1764112207327,0.002,2979.8,2979.7,5.29163666]
[1764112207721,0.002,2979.8,2979.7,4.79433666]
[1764112208322,0.002,2979.8,2979.7,4.29763666]
[1764112208625,0.002,2979.8,2979.7,4.08163666]
[1764112208827,0.002,2979.8,2979.7,4.29763666]
[1764112209152,0.002,2979.8,2979.7,4.79433666]
[1764112209319,0.002,2979.8,2979.7,4.29763666]
[1764112209754,0.002,2979.8,2979.7,3.35604255]
[1764112210326,0.002,2979.8,2979.4,3.35635034]
[1764112210327,0.9444,2979.8,2979.4,0.216]
[1764112210655,0.9444,2979.8,2978.4,4.27984258]
[1764112210656,0.4516,2979.5,2978.5,4.22294355]
[1764112210831,0.216,2979.7,2978.8,4.27984258]
[1764112211275,0.4902,2979.8,2978.8,4.27984258]
[1764112211427,0.4902,2979.8,2978.9,6.71388766]
[1764112211629,0.4902,2979.8,2979.0,0.72559411]
[1764112211840,0.4902,2979.8,2979.1,0.216]
[1764112212268,0.4902,2979.8,2979.3,0.86556659]
[1764112212269,0.002,2979.8,2979.3,0.86556659]
[1764112212771,0.002,2979.8,2979.4,1.36286659]
[1764112213070,0.002,2979.8,2979.5,1.08156659]
[1764112213239,0.002,2979.8,2979.5,1.57886659]
[1764112213441,0.002,2979.8,2979.6,6.71231036]
[1764112213638,0.002,2979.8,2979.7,0.4967]
[1764112214258,0.002,2979.8,2979.6,6.71231036]
[1764112214259,0.4661,2979.8,2979.6,3.35615518]
[1764112214463,0.4661,2979.8,2979.6,6.71231036]
[1764112214664,0.002,2979.8,2979.6,6.71231036]
[1764112214976,0.002,2979.8,2979.3,4.08202559]
[1764112214977,0.9523,2979.7,2979.3,0.86556659]
[1764112215177,0.002,2979.8,2978.9,0.7133]
[1764112215178,0.31361878,2979.6,2978.9,0.7133]
[1764112215478,0.002,2979.8,2979.2,6.7132116]
[1764112215638,0.4902,2979.8,2979.2,3.3566058]
[1764112215847,0.4641,2979.3,2978.9,3.35688812]
[1764112216142,0.4902,2979.8,2978.9,6.71383195]
[1764112216362,0.80190138,2979.7,2978.9,6.71383195]
[1764112216676,0.31370138,2979.6,2978.9,6.71383195]
[1764112216871,0.80190138,2979.6,2978.9,6.71383195]
[1764112217076,0.80190138,2979.6,2978.6,0.72559411]
[1764112217077,0.4641,2979.0,2978.6,0.86556659]
[1764112217255,0.4641,2979.0,2978.6,6.71456388]
[1764112217455,0.4641,2979.0,2978.5,0.72559411]
[1764112217673,0.216,2979.5,2978.6,0.7133]
[1764112217875,0.80191334,2979.4,2978.6,0.216]
[1764112218062,0.31371334,2979.3,2978.6,0.216]
[1764112218242,0.80191334,2979.3,2978.6,0.216]
[1764112218440,0.4882,2979.3,2978.6,0.216]
[1764112218880,0.4882,2979.3,2978.4,0.86556659]
[1764112218881,0.6498,2978.7,2978.4,0.86556659]
[1764112219184,0.6498,2978.7,2978.4,0.72559411]
[1764112219381,0.216,2979.5,2978.6,0.4967]
[1764112219580,0.31376644,2979.4,2978.7,6.71433846]
[1764112219764,0.6396,2978.8,2978.5,3.35739466]
[1764112220072,0.4882,2979.4,2978.5,6.71478932]
[1764112220278,0.79794996,2979.3,2978.5,6.71478932]
[1764112220479,0.31374996,2979.2,2978.5,6.71478932]
[1764112220677,0.79794996,2979.2,2978.5,6.71478932]
[1764112220882,0.4842,2979.2,2978.5,6.71478932]
[1764112221471,0.4842,2979.2,2978.5,3.35739466]
[1764112221678,0.4842,2979.2,2978.5,6.71478932]
[1764112222785,0.002,2979.8,2979.1,1.70861118]
[1764112222952,0.002,2979.8,2979.4,0.4751]
[1764112223152,0.002,2979.8,2979.7,0.4751]
[1764112223581,0.002,2979.8,2979.7,3.35604255]
[1764112223762,0.002,2979.8,2979.7,3.57204255]
[1764112224554,0.002,2979.8,2979.7,3.83114255]
[1764112224791,0.002,2979.8,2979.7,4.04714255]
[1764112225475,0.002,2979.8,2979.7,3.35604255]
[1764112225677,0.002,2979.8,2979.6,0.216]
[1764112226964,0.4992,2979.7,2979.5,7.43812977]
[1764112227204,0.4862,2979.8,2979.5,4.08186194]
[1764112227205,0.1424,2979.6,2979.5,4.08186194]
[1764112227695,0.1424,2979.6,2979.5,3.35626783]
[1764112228800,0.6266,2979.6,2979.5,3.35626783]
[1764112229883,0.6266,2979.6,2979.2,6.7132116]
[1764112230199,0.002,2979.8,2979.2,6.7132116]
[1764112230493,0.4862,2979.8,2979.2,6.7132116]
[1764112231061,0.002,2979.8,2979.2,6.7132116]
[1764112231299,0.002,2979.8,2979.2,10.0698174]
[1764112231703,0.002,2979.8,2979.3,0.72559411]
[1764112231871,0.002,2979.8,2979.4,10.06914141]
[1764112232401,0.002,2979.8,2979.5,0.216]
[1764112233880,0.002,2979.8,2979.4,3.35638047]
[1764112234433,0.002,2979.8,2979.7,0.4751]
[1764112234585,0.002,2979.8,2979.7,0.5681]
[1764112234788,0.002,2979.8,2979.7,1.0249]
[1764112234989,0.002,2979.8,2979.6,0.87575873]
[1764112235190,0.002,2979.8,2979.5,1.81735284]
[1764112235516,0.002,2979.8,2979.5,1.60135284]
[1764112235817,0.002,2979.8,2979.6,0.216]
[1764112236117,0.002,2979.8,2979.7,4.08163666]
[1764112236519,0.5012,2979.8,2979.7,3.35604255]
[1764112236722,0.5012,2979.8,2979.4,0.87575873]
[1764112236723,0.9854,2979.8,2979.4,6.71276094]
[1764112237024,0.1424,2979.5,2979.1,0.87575873]
[1764112237192,0.4862,2979.8,2979.1,3.35670201]
[1764112237193,0.9799,2979.4,2979.1,3.35670201]
[1764112237517,0.146,2979.2,2978.9,3.3568861]
[1764112237886,0.4992,2979.0,2978.9,3.3568861]
[1764112238087,0.002,2979.8,2978.8,6.7140826]
[1764112238306,0.4842,2979.7,2978.8,6.7140826]
[1764112238519,0.4842,2979.7,2978.8,3.35702607]
[1764112238732,0.6416,2978.9,2978.7,3.35712378]
[1764112238935,0.6416,2978.9,2978.5,0.87575873]
[1764112238936,0.6765,2978.8,2978.6,3.35722445]
[1764112239144,0.1424,2978.9,2978.5,3.35737343]
[1764112239145,0.9804,2978.7,2978.5,3.35737343]
[1764112239428,0.9804,2978.7,2978.1,6.7156912]
[1764112239429,0.1954,2978.6,2978.1,6.7156912]
[1764112239585,0.4932,2978.4,2978.1,6.9316912]
[1764112240046,0.4932,2978.4,2977.8,4.68270774]
[1764112240047,0.1983,2978.2,2977.8,0.87575873]
[1764112240206,0.1424,2978.9,2977.8,0.87575873]
[1764112240207,0.6944,2977.9,2977.8,3.35814991]
[1764112240542,0.4842,2978.1,2977.8,6.7163338]
[1764112240722,0.1952,2978.2,2977.8,6.7163338]
[1764112242224,0.1952,2978.2,2977.6,7.44241301]
[1764112242413,0.1952,2978.2,2977.6,10.80082246]
[1764112242720,0.1952,2978.2,2977.6,7.44241301]
[1764112243053,0.216,2978.6,2977.6,10.80082246]
[1764112243335,0.1952,2978.5,2977.7,0.4568]
[1764112243696,0.1952,2978.5,2977.6,10.80082246]
[1764112243890,0.6794,2978.5,2977.6,10.80082246]
[1764112244092,0.6794,2978.5,2977.8,3.35818389]
[1764112244326,0.4842,2978.4,2977.8,6.71636778]
[1764112245683,0.4842,2978.4,2977.8,3.35818389]
[1764112245922,0.4842,2978.4,2977.8,6.71636778]
[1764112246735,0.1952,2978.5,2977.8,0.03358183]
[1764112246917,0.1952,2978.5,2977.7,0.72559411]
[1764112247224,0.1952,2978.5,2977.7,1.18239411]
[1764112247615,0.1952,2978.5,2977.7,0.72559411]
[1764112247816,0.6794,2978.5,2977.8,0.216]
[1764112248701,0.6794,2978.5,2977.9,6.71614224]
[1764112248906,0.6794,2978.5,2977.9,10.07421336]
[1764112249102,0.1952,2978.5,2977.9,10.07421336]
[1764112249658,0.1424,2978.9,2977.9,13.43228448]
[1764112249943,0.4842,2979.4,2978.1,0.093]
[1764112250124,0.4842,2979.4,2978.2,0.8308]
[1764112250931,0.4842,2979.4,2978.3,10.07286033]
[1764112252543,0.4842,2979.4,2978.4,0.4829]
[1764112252905,0.4842,2979.4,2978.5,6.71478932]
[1764112253103,0.4842,2979.4,2978.5,10.07218398]
[1764112254231,0.4842,2979.4,2978.5,6.71478932]
[1764112255043,3.84058266,2979.4,2978.3,10.0727749]
[1764112255243,3.84058266,2979.4,2978.4,0.216]
[1764112255449,0.4952,2979.3,2978.4,0.216]
[1764112255645,0.4952,2979.3,2978.3,10.0727749]
[1764112256934,0.4952,2979.3,2978.3,10.2887749]
[1764112257774,0.4952,2979.3,2978.3,6.71515479]
[1764112257949,3.85172657,2979.3,2978.3,6.71515479]
[1764112258471,0.4952,2979.2,2978.3,6.71515479]
[1764112258685,0.4952,2979.2,2978.3,10.0727749]
[1764112258866,0.4952,2979.2,2978.4,0.4829]
[1764112259670,0.4952,2979.2,2978.5,6.71478932]
[1764112260277,0.471,2978.6,2978.5,3.35739466]
[1764112260943,0.9342,2978.6,2978.1,0.94159411]
[1764112261178,0.002,2979.4,2978.1,1.09959411]
[1764112261179,0.4632,2979.0,2978.1,1.09959411]
[1764112261503,0.4652,2979.4,2978.2,0.4517]
[1764112261642,0.002,2979.4,2979.3,3.83589313]
[1764112261840,0.473,2979.4,2979.0,0.72559411]
[1764112262069,0.2061,2979.1,2979.0,0.72559411]
[1764112262272,0.2061,2979.1,2978.9,6.71388766]
[1764112262437,0.4652,2979.4,2978.9,6.71388766]
[1764112262638,0.002,2979.4,2978.9,10.07083149]
[1764112262883,0.4632,2979.3,2978.9,6.71388766]
[1764112263246,0.471,2979.0,2978.9,3.35694383]
[1764112263544,0.471,2979.0,2978.8,3.35702209]
[1764112263776,0.471,2979.0,2978.5,7.44038343]
[1764112264358,0.002,2979.4,2978.6,0.4517]
[1764112265380,0.002,2979.4,2978.6,1.32745873]
[1764112265810,0.002,2979.4,2978.7,13.42867692]
[1764112266013,0.002,2979.4,2978.8,0.72559411]
[1764112266305,0.002,2979.4,2978.9,0.216]
[1764112266479,0.002,2979.4,2979.3,0.4794]
[1764112266898,0.002,2979.4,2978.9,0.6677]
[1764112267803,0.002,2979.4,2979.0,6.7136623]
[1764112267993,0.002,2979.4,2979.0,10.52219345]
[1764112268214,0.002,2979.4,2979.3,0.4794]
[1764112269904,0.002,2979.4,2979.3,3.83589313]
[1764112270204,0.9362,2979.4,2979.3,3.35649313]
[1764112270585,0.002,2979.4,2979.3,3.35649313]
[1764112271404,0.002,2979.4,2979.3,3.83589313]
[1764112271992,0.002,2979.4,2979.2,6.71320424]
[1764112273017,0.002,2979.4,2979.3,0.4794]
[1764112273721,0.002,2979.4,2979.3,1.65669411]
[1764112273907,0.002,2979.4,2979.3,5.01318724]
[1764112274718,0.002,2979.4,2979.3,4.56148724]
[1764112275791,0.002,2979.4,2979.3,3.35649313]
[1764112275792,0.9362,2979.4,2979.3,3.35649313]
[1764112276088,0.9362,2979.4,2979.2,3.35659844]
[1764112276089,0.002,2979.4,2979.2,6.71320424]
[1764112276289,0.002,2979.4,2979.2,6.74677029]
[1764112276704,0.002,2979.4,2979.3,2.62545284]
[1764112276923,0.002,2979.4,2979.3,3.13337242]
[1764112277095,0.002,2979.4,2979.3,1.87269411]
[1764112277625,0.002,2979.4,2979.3,3.13279772]
[1764112277813,0.002,2979.4,2979.3,1.95569411]
[1764112278211,0.002,2979.4,2979.3,5.31218724]
[1764112278417,0.002,2979.4,2979.3,6.38615549]
[1764112278835,0.002,2979.4,2979.3,6.47915549]
[1764112279323,0.002,2979.4,2979.3,5.71769124]
[1764112280522,0.002,2979.4,2979.3,7.42845801]
[1764112280725,1e-08,2979.7,2979.6,0.5729]
[1764112280912,1e-08,2979.7,2979.6,6.42900021]
[1764112281114,0.1859,2981.2,2980.3,0.093]
[1764112281314,0.1859,2981.2,2979.7,0.72559411]
[1764112281315,0.1859,2981.2,2980.4,0.3746]
[1764112281635,0.1859,2981.2,2980.4,0.8533]
[1764112281814,0.1859,2981.2,2980.4,0.1586]
[1764112281815,0.6359,2981.2,2980.4,0.1586]
[1764112282024,0.6359,2981.2,2980.5,0.216]
[1764112282315,0.45,2981.1,2980.6,6.71005836]
[1764112282502,0.45,2981.1,2980.7,0.72559411]
[1764112283009,0.6811,2980.8,2980.6,6.71005836]
[1764112283209,0.2213,2980.7,2980.6,3.35502918]
[1764112283639,0.6713,2980.7,2980.6,3.35502918]
[1764112284507,0.6713,2980.7,2980.4,7.43610275]
[1764112284711,0.4925,2980.6,2980.4,6.71050864]
[1764112284904,0.4925,2980.6,2980.4,3.35525432]
[1764112284905,0.224,2980.5,2980.4,3.35525432]
[1764112285138,0.224,2980.5,2979.4,1.16570803]
[1764112285139,0.224,2980.5,2980.0,0.72559411]
[1764112285310,0.4898,2980.2,2980.0,0.72559411]
[1764112285509,0.45,2980.4,2980.0,0.72559411]
[1764112285706,0.6359,2980.8,2980.0,0.72559411]
[1764112286512,0.45,2980.7,2980.1,10.06677627]
[1764112287447,0.45,2980.7,2980.1,6.71118418]
[1764112287659,0.4952,2980.2,2980.1,3.35559209]
[1764112288125,0.9452,2980.2,2980.1,3.35559209]
[1764112288539,8.02594621,2982.1,2980.1,3.35559209]
[1764112288541,0.45,2982.5,2980.4,0.72559411]
[1764112288723,0.1859,2982.8,2981.1,0.87227942]
[1764112288724,0.45,2982.4,2981.1,0.87227942]
[1764112288921,0.45,2982.4,2981.2,1.08827942]
[1764112289227,0.45,2982.4,2981.1,1.35097942]
[1764112289442,0.45,2982.4,2981.3,0.216]
[1764112289940,0.45,2982.4,2981.3,0.7877]
[1764112290314,0.4019,2982.8,2981.4,0.4787]
[1764112290514,0.45,2982.5,2981.6,0.72559411]
[1764112290716,0.45,2982.5,2981.7,0.216]
[1764112291642,0.1887,2983.2,2981.7,0.216]
[1764112291643,0.45,2983.1,2982.4,0.4799]
[1764112291820,0.45,2983.1,2982.4,0.6382]
[1764112292005,0.1887,2983.2,2982.4,1.1169]
[1764112292210,0.1887,2983.2,2982.3,0.216]
[1764112292211,0.45,2983.2,2982.3,0.216]
[1764112292616,0.45,2983.2,2982.5,0.72559411]
[1764112293262,0.1859,2983.4,2982.5,0.72559411]
[1764112293428,0.216,2983.7,2982.6,0.4787]
[1764112293429,0.1859,2983.6,2982.6,0.4787]
[1764112294139,3.35088841,2984.3,2982.5,0.81859411]
[1764112294140,0.45,2984.6,2983.5,0.6382]
[1764112294449,3.5359882,2985.0,2982.8,0.72559411]
[1764112294450,0.45,2984.4,2983.3,0.216]
[1764112294740,0.45,2984.4,2982.8,4.26764006]
[1764112294741,0.45,2984.4,2983.5,0.72559411]
[1764112295341,0.45,2984.4,2983.5,0.94159411]
[1764112296318,0.45,2984.4,2983.5,0.72559411]
[1764112296518,0.45,2984.4,2983.2,0.94159411]
[1764112296519,0.6811,2983.6,2983.2,0.94159411]
[1764112296730,0.6811,2983.6,2983.0,0.1583]
[1764112296912,0.6811,2983.6,2982.7,0.1583]
[1764112296913,0.45,2983.5,2982.7,0.1583]
[1764112297108,0.45,2983.5,2982.3,10.05935016]
[1764112297311,0.45,2983.5,2982.4,0.216]
[1764112297526,0.45,2983.5,2982.3,6.70623344]
[1764112297755,0.45,2983.5,2982.3,3.35311672]
[1764112297959,0.45,2983.5,2981.4,5.13991948]
[1764112297960,0.6811,2982.4,2981.4,3.35412893]
[1764112298240,0.6811,2982.4,2981.5,3.57001643]
[1764112298241,0.2268,2982.3,2981.5,3.57001643]
[1764112298465,0.6768,2982.3,2981.5,0.216]
[1764112298676,0.2268,2982.3,2981.6,10.06171182]
[1764112298859,0.2268,2982.3,2981.6,6.70780788]
[1764112298860,0.6768,2982.3,2981.6,6.70780788]
[1764112299062,0.45,2982.2,2981.6,6.70780788]
[1764112299375,0.45,2982.2,2981.6,3.35390394]
[1764112299584,0.1859,2982.4,2981.6,10.06171182]
[1764112299782,0.1859,2982.4,2981.6,6.70780788]
[1764112299939,0.1859,2982.4,2981.7,0.216]
[1764112300364,0.45,2982.6,2981.7,0.94159411]
[1764112300365,0.1859,2982.5,2981.7,0.94159411]
[1764112300641,0.1859,2983.0,2981.9,10.06069953]
[1764112300847,0.45,2982.9,2981.9,6.70713302]
[1764112301048,0.45,2982.9,2982.0,0.216]
[1764112301276,0.1859,2983.0,2982.0,0.94159411]
[1764112301485,0.1859,2983.0,2982.1,0.1583]
[1764112301841,0.45,2983.5,2982.2,0.4787]
[1764112302073,0.45,2983.5,2982.4,0.093]
[1764112302255,0.45,2983.5,2982.5,0.216]
[1764112302772,0.45,2983.5,2982.6,10.05833835]
[1764112303140,0.45,2983.5,2982.6,6.9215589]
[1764112303775,0.45,2983.5,2982.6,10.27433835]
[1764112303937,0.45,2983.5,2982.6,6.9215589]
[1764112304143,0.45,2983.5,2982.3,0.94159411]
[1764112304144,3.3518804,2983.4,2982.3,0.94159411]
[1764112304464,3.3518804,2983.4,2982.2,3.35322915]
[1764112304465,6.7037608,2983.4,2982.2,3.35322915]
[1764112304663,3.80199582,2983.3,2982.2,6.7064583]
[1764112304886,7.15399164,2983.3,2982.2,6.7064583]
[1764112305043,0.1859,2982.3,2982.2,4.07882326]
[1764112305246,0.45,2983.2,2982.2,4.07882326]
[1764112305247,0.216,2983.1,2982.2,7.43205241]
[1764112305439,0.1859,2982.5,2982.2,7.43205241]
[1764112305677,0.666,2983.1,2982.2,7.43205241]
[1764112305978,0.1859,2982.7,2982.2,10.78528156]
[1764112306276,0.45,2983.1,2982.2,10.78528156]
[1764112306277,0.45,2983.1,2982.3,0.94159411]
[1764112306572,0.6359,2983.6,2982.6,0.4799]
[1764112306786,0.6359,2983.6,2982.7,10.05800112]
[1764112307076,0.45,2983.5,2982.7,6.70533408]
[1764112307439,0.45,2983.5,2982.7,3.35266704]